[Event "White Rook U14 Final 2019"]
[Site "Sochi"]
[Date "2019.06.09"]
[Round "8.1"]
[White "Putrenko, Kirill"]
[Black "Abrazevich, Yauheni"]
[Result "1-0"]
[ECO "E74"]
[WhiteElo "2010"]
[BlackElo "1888"]
[Annotator "NA"]
[PlyCount "209"]
[EventDate "2019.06.02"]
[EventCountry "RUS"]
[SourceTitle "playchess.com"]
[Source "ChessBase"]
[SourceQuality "1"]
[TimeControl "5400+30"]

1. d4 {[%emt 0:00:00]} Nf6 {[%emt 0:00:00]} 2. c4 {[%emt 0:00:00]} g6 {[%emt 0:00:00]} 3. Nc3 {[%emt 0:00:00]} Bg7 {[%emt 0:00:00]} 4. e4 {[%emt 0:00:00]} d6 {[%emt 0:00:00]} 5. Be2 {[%emt 0:00:00]} O-O {[%emt 0:00:00]} 6. Bg5 {[%emt 0:00:00]} c5 {[%emt 0:00:00]} 7. d5 {[%emt 0:00:00]} h6 {[%emt 0:00:22]} 8. Bf4 {[%emt 0:01:41]} Ne8 {[%emt 0:07:46]} 9. Qd2 {[%emt 0:02:20]} Kh7 {[%emt 0:00:28]} 10. Nf3 {[%emt 0:01:02]} e5 {[%emt 0:03:57]} 11. dxe6 {[%emt 0:01:55]} fxe6 {[%emt 0:00:08]} 12. e5 {[%emt 0:03:29]} Nc6 {[%emt 0:00:51]} 13. Bg3 {[%emt 0:18:04]} Qb6 {[%emt 0:10:46]} 14. Na4 {[%emt 0:01:46]} Qb4 {[%emt 0:03:44]} 15. Qxb4 {[%emt 0:02:35]} Nxb4 {[%emt 0:00:00]} 16. O-O-O {[%emt 0:03:02]} dxe5 {[%emt 0:10:07]} 17. a3 {[%emt 0:04:04]} Nc6 {[%emt 0:00:32]} 18. Nxc5 {[%emt 0:00:43]} b6 {[%emt 0:06:06]} 19. Nb3 {[%emt 0:05:35]} Ba6 {[%emt 0:10:35]} 20. Rhe1 {[%emt 0:05:47]} Rc8 {[%emt 0:05:41]} 21. Kb1 {[%emt 0:01:40]} Nf6 {[%emt 0:04:56]} 22. Bf1 {[%emt 0:10:51]} e4 {[%emt 0:08:47]} 23. Nfd4 {[%emt 0:03:03]} Nxd4 {[%emt 0:02:56]} 24. Nxd4 {[%emt 0:00:49]} Bxc4 {[%emt 0:02:24]} 25. Bxc4 {[%emt 0:00:15]} Rxc4 {[%emt 0:00:08]} 26. Nxe6 {[%emt 0:00:06]} Re8 {[%emt 0:02:57]} 27. Nxg7 {[%emt 0:00:57]} Kxg7 {[%emt 0:00:06]} 28. Rc1 {[%emt 0:00:56]} Rec8 {[%emt 0:05:10]} 29. Rxc4 {[%emt 0:00:23]} Rxc4 {[%emt 0:00:09]} 30. Be5 {[%emt 0:00:21]} Kf7 {[%emt 0:00:48]} 31. Rd1 {[%emt 0:07:57]} Rc6 {[%emt 0:06:03]} 32. h3 {[%emt 0:02:54]} Re6 {[%emt 0:02:14]} 33. Bf4 {[%emt 0:03:10]} g5 {[%emt 0:00:08]} 34. Be3 {[%emt 0:00:12]} Ke7 {[%emt 0:00:13]} 35. Kc2 {[%emt 0:01:30]} Rc6+ {[%emt 0:05:05]} 36. Kb3 {[%emt 0:00:57]} Ke6 {[%emt 0:00:30]} 37. Rd8 {[%emt 0:00:06]} Nd5 {[%emt 0:00:14]} 38. Re8+ {[%emt 0:00:32]} Kf5 {[%emt 0:00:54]} 39. g4+ {[%emt 0:00:23]} Kg6 {[%emt 0:01:54]} 40. Rxe4 {[%emt 0:01:22]} Nxe3 {[%emt 0:00:34]} 41. Rxe3 {[%emt 0:00:41]} Rf6 {[%emt 0:01:06]} 42. f3 {[%emt 0:00:07]} Kf7 {[%emt 0:00:00]} 43. Kc4 {[%emt 0:01:10]} a6 {[%emt 0:01:56]} 44. Kd3 {[%emt 0:02:42]} Rd6+ {[%emt 0:00:41]} 45. Ke2 {[%emt 0:00:08]} Rc6 {[%emt 0:00:22]} 46. Rc3 {[%emt 0:01:48]} Re6+ {[%emt 0:00:30]} 47. Kf2 {[%emt 0:00:54]} Rd6 {[%emt 0:00:19]} 48. Kg3 {[%emt 0:00:00]} Rd2 {[%emt 0:00:48]} 49. b3 {[%emt 0:00:35]} a5 {[%emt 0:00:33]} 50. Rc6 {[%emt 0:00:00]} b5 {[%emt 0:00:10]} 51. Rxh6 {[%emt 0:01:51]} Rd3 {[%emt 0:00:41]} 52. Ra6 {[%emt 0:00:10]} Rxb3 {[%emt 0:01:03]} 53. Rxa5 {[%emt 0:00:00]} Kf6 {[%emt 0:00:06]} 54. Ra6+ {[%emt 0:00:06]} Kg7 {[%emt 0:00:17]} 55. Rb6 {[%emt 0:01:00]} Kf7 {[%emt 0:00:06]} 56. Ra6 {[%emt 0:00:33]} Kg7 {[%emt 0:00:35]} 57. Ra5 {[%emt 0:00:27]} Kg6 {[%emt 0:00:00]} 58. a4 {[%emt 0:00:45]} b4 {[%emt 0:00:58]} 59. Rb5 {[%emt 0:00:06]} Rb1 {[%emt 0:00:10]} 60. a5 {[%emt 0:00:07]} b3 {[%emt 0:00:59]} 61. a6 {[%emt 0:00:48]} b2 {[%emt 0:00:00]} 62. Kg2 {[%emt 0:00:00]} Ra1 {[%emt 0:00:14]} 63. Rxb2 {[%emt 0:00:00]} Rxa6 {[%emt 0:00:34]} 64. Kg3 {[%emt 0:00:36]} Ra3 {[%emt 0:00:00]} 65. Rh2 {[%emt 0:00:00]} Ra1 {[%emt 0:01:40]} 66. h4 {[%emt 0:00:37]} Rg1+ {[%emt 0:00:41]} 67. Kf2 {[%emt 0:00:11]} Ra1 {[%emt 0:00:03]} 68. hxg5 {[%emt 0:00:11]} Kxg5 {[%emt 0:00:50]} 69. Rh5+ {[%emt 0:00:00]} Kg6 {[%emt 0:00:00]} 70. Rb5 {[%emt 0:00:14]} Ra2+ {[%emt 0:00:51]} 71. Kg3 {[%emt 0:00:00]} Ra3 {[%emt 0:00:35]} 72. Re5 {[%emt 0:03:53]} Kf6 {[%emt 0:00:16]} 73. Re4 {[%emt 0:00:11]} Kg5 {[%emt 0:00:06]} 74. Kf2 {[%emt 0:01:13]} Ra2+ {[%emt 0:01:08]} 75. Re2 {[%emt 0:00:12]} Ra3 {[%emt 0:00:40]} 76. Re3 {[%emt 0:00:15]} Ra1 {[%emt 0:00:19]} 77. Re1 {[%emt 0:00:34]} Ra2+ {[%emt 0:00:36]} 78. Kg3 {[%emt 0:00:06]} Ra3 {[%emt 0:00:00]} 79. Re5+ {[%emt 0:00:09]} Kf6 {[%emt 0:00:14]} 80. Rc5 {[%emt 0:00:10]} Kg6 {[%emt 0:00:23]} 81. g5 {[%emt 0:00:38]} Kh5 {[%emt 0:01:45]} 82. Kf4 {[%emt 0:02:18]} Rb3 {[%emt 0:00:17]} 83. Re5 {[%emt 0:00:31]} Ra3 {[%emt 0:01:10]} 84. Re6 {[%emt 0:00:48]} Ra4+ {[%emt 0:00:00]} 85. Kf5 {[%emt 0:00:44]} Ra5+ {[%emt 0:00:26]} 86. Re5 {[%emt 0:00:23]} Ra8 {[%emt 0:00:26]} 87. Re6 {[%emt 0:01:28]} Ra5+ {[%emt 0:00:05]} 88. Kf6 {[%emt 0:00:56]} Ra8 {[%emt 0:01:33]} 89. g6 {[%emt 0:00:51]} Kh6 {[%emt 0:00:31]} 90. g7 {[%emt 0:00:46]} Kh7 {[%emt 0:00:30]} 91. Re7 {[%emt 0:01:45]} Ra6+ {[%emt 0:00:31]} 92. Kf7 {[%emt 0:00:47]} Ra8 {[%emt 0:00:10]} 93. Re8 {[%emt 0:00:52]} Ra7+ {[%emt 0:00:04]} 94. Kf8 {[%emt 0:00:06]} Rxg7 {[%emt 0:00:10]} 95. Re7 {[%emt 0:00:05]} Kh8 {[%emt 0:00:01]} 96. Re5 {[%emt 0:01:33]} Kh7 {[%emt 0:01:54]} 97. f4 {[%emt 0:01:23]} Rg4 {[%emt 0:00:14]} 98. f5 {[%emt 0:00:18]} Kh6 {[%emt 0:00:23]} 99. f6 {[%emt 0:00:37]} Kg6 {[%emt 0:01:04]} 100. f7 {[%emt 0:00:16]} Kf6 {[%emt 0:00:31]} 101. Ra5 {[%emt 0:00:36]} Re4 {[%emt 0:00:27]} 102. Ra6+ {[%emt 0:00:15]} Kf5 {[%emt 0:00:04]} 103. Kg7 {[%emt 0:00:43]} Rg4+ {[%emt 0:00:29]} 104. Kh7 {[%emt 0:00:16]} Rh4+ {[%emt 0:00:23]} 105. Rh6 {[%emt 0:00:06]} 1-0

[Event "White Rook U14 Final 2019"]
[Site "Sochi"]
[Date "2019.06.09"]
[Round "8.2"]
[White "Dyl, Nikita"]
[Black "Ismagilov, Igor"]
[Result "0-1"]
[ECO "A43"]
[WhiteElo "1646"]
[BlackElo "1803"]
[Annotator "NA"]
[PlyCount "66"]
[EventDate "2019.06.02"]
[EventCountry "RUS"]
[SourceTitle "playchess.com"]
[Source "ChessBase"]
[SourceQuality "1"]
[TimeControl "5400+30"]

1. d4 {[%emt 0:00:00]} c5 {[%emt 0:00:00]} 2. d5 {[%emt 0:00:00]} g6 {[%emt 0:00:00]} 3. c4 {[%emt 0:00:00]} Bg7 {[%emt 0:00:00]} 4. e4 {[%emt 0:00:00]} d6 {[%emt 0:00:00]} 5. Be2 {[%emt 0:00:00]} e6 {[%emt 0:00:00]} 6. Nf3 {[%emt 0:00:13]} Ne7 {[%emt 0:00:00]} 7. O-O {[%emt 0:01:32]} O-O {[%emt 0:00:36]} 8. Nc3 {[%emt 0:00:11]} exd5 {[%emt 0:00:52]} 9. exd5 {[%emt 0:00:09]} Bg4 {[%emt 0:00:48]} 10. Bg5 {[%emt 0:10:22]} h6 {[%emt 0:03:13]} 11. Bh4 {[%emt 0:00:14]} f5 {[%emt 0:12:54]} 12. Bxe7 {[%emt 0:03:58]} Qxe7 {[%emt 0:00:35]} 13. h3 {[%emt 0:00:52]} Bxf3 {[%emt 0:09:00]} 14. Bxf3 {[%emt 0:00:00]} Bxc3 {[%emt 0:02:19]} 15. bxc3 {[%emt 0:00:00]} Nd7 {[%emt 0:03:17]} 16. Re1 {[%emt 0:01:28]} Ne5 {[%emt 0:04:29]} 17. Qd2 {[%emt 0:02:56]} Qg5 {[%emt 0:07:54]} 18. Qxg5 {[%emt 0:05:08]} hxg5 {[%emt 0:00:04]} 19. Rab1 {[%emt 0:00:18]} Rfe8 {[%emt 0:04:52]} 20. Be2 {[%emt 0:04:16]} Re7 {[%emt 0:02:48]} 21. g3 {[%emt 0:01:37]} Rae8 {[%emt 0:01:45]} 22. Kf1 {[%emt 0:00:06]} f4 {[%emt 0:09:39]} 23. Rbd1 {[%emt 0:03:56]} f3 {[%emt 0:11:03]} 24. Bd3 {[%emt 0:00:15]} Rh7 {[%emt 0:03:20]} 25. h4 {[%emt 0:19:18]} Kg7 {[%emt 0:03:21]} 26. Re4 {[%emt 0:02:06]} Reh8 {[%emt 0:02:13]} 27. Ke1 {[%emt 0:03:44]} gxh4 {[%emt 0:01:16]} 28. gxh4 {[%emt 0:01:09]} Rxh4 {[%emt 0:00:26]} 29. Kd2 {[%emt 0:00:32]} Rxe4 {[%emt 0:01:41]} 30. Bxe4 {[%emt 0:00:08]} Nxc4+ {[%emt 0:01:20]} 31. Kc2 {[%emt 0:00:04]} Rh2 {[%emt 0:01:23]} 32. Bxf3 {[%emt 0:01:01]} Rxf2+ {[%emt 0:00:06]} 33. Kb3 {[%emt 0:00:32]} Nd2+ {[%emt 0:00:30]} 0-1

[Event "White Rook U14 Final 2019"]
[Site "Sochi"]
[Date "2019.06.09"]
[Round "8.3"]
[White "Khodko, Yurii N."]
[Black "Zaiko, Stanislav"]
[Result "1-0"]
[ECO "C98"]
[WhiteElo "1727"]
[BlackElo "1176"]
[Annotator "NA"]
[PlyCount "71"]
[EventDate "2019.06.02"]
[EventCountry "RUS"]
[SourceTitle "playchess.com"]
[Source "ChessBase"]
[SourceQuality "1"]
[TimeControl "5400+30"]

1. e4 {[%emt 0:00:00]} e5 {[%emt 0:00:00]} 2. Nf3 {[%emt 0:00:00]} Nc6 {[%emt 0:00:00]} 3. Bb5 {[%emt 0:00:00]} a6 {[%emt 0:00:00]} 4. Ba4 {[%emt 0:00:00]} Nf6 {[%emt 0:00:00]} 5. O-O {[%emt 0:00:16]} d6 {[%emt 0:00:00]} 6. Re1 {[%emt 0:00:31]} b5 {[%emt 0:00:14]} 7. Bb3 {[%emt 0:00:00]} Be7 {[%emt 0:00:03]} 8. c3 {[%emt 0:00:17]} O-O {[%emt 0:01:22]} 9. h3 {[%emt 0:00:07]} Na5 {[%emt 0:00:36]} 10. Bc2 {[%emt 0:00:00]} c5 {[%emt 0:00:36]} 11. d4 {[%emt 0:00:00]} Qc7 {[%emt 0:00:09]} 12. Nbd2 {[%emt 0:00:00]} Nc6 {[%emt 0:08:16]} 13. d5 {[%emt 0:00:44]} Nb8 {[%emt 0:00:47]} 14. a4 {[%emt 0:00:23]} Bb7 {[%emt 0:03:16]} 15. Nf1 {[%emt 0:03:40]} Nbd7 {[%emt 0:02:54]} 16. b3 {[%emt 0:03:12]} Nb6 {[%emt 0:08:29]} 17. a5 {[%emt 0:04:37]} Nbd7 {[%emt 0:00:21]} 18. Ng3 {[%emt 0:00:40]} Rfe8 {[%emt 0:00:52]} 19. Nh2 {[%emt 0:00:33]} Nf8 {[%emt 0:01:20]} 20. Nf5 {[%emt 0:01:59]} Ng6 {[%emt 0:00:15]} 21. Bg5 {[%emt 0:01:09]} h6 {[%emt 0:00:38]} 22. Be3 {[%emt 0:01:19]} Bc8 {[%emt 0:08:10]} 23. g3 {[%emt 0:02:59]} Bd8 {[%emt 0:03:18]} 24. h4 {[%emt 0:01:33]} Bxf5 {[%emt 0:02:23]} 25. exf5 {[%emt 0:00:49]} Ne7 {[%emt 0:00:11]} 26. c4 {[%emt 0:01:29]} b4 {[%emt 0:07:48]} 27. g4 {[%emt 0:01:10]} Nh7 {[%emt 0:04:15]} 28. g5 {[%emt 0:01:43]} hxg5 {[%emt 0:00:15]} 29. hxg5 {[%emt 0:00:24]} Nc8 {[%emt 0:11:47]} 30. Qh5 {[%emt 0:00:56]} Nf8 {[%emt 0:05:09]} 31. f6 {[%emt 0:04:25]} gxf6 {[%emt 0:00:39]} 32. gxf6 {[%emt 0:00:21]} Bxf6 {[%emt 0:02:11]} 33. Ng4 {[%emt 0:02:17]} Bg7 {[%emt 0:06:21]} 34. Bh6 {[%emt 0:00:33]} Ne7 {[%emt 0:01:03]} 35. Bxg7 {[%emt 0:00:09]} Kxg7 {[%emt 0:00:04]} 36. Qh6+ {[%emt 0:00:05]} 1-0

[Event "White Rook U14 Final 2019"]
[Site "Sochi"]
[Date "2019.06.09"]
[Round "8.4"]
[White "Zeliantsova, Kseniya"]
[Black "Loviagina, Dariana"]
[Result "1-0"]
[ECO "B28"]
[WhiteElo "1892"]
[BlackElo "1297"]
[Annotator "NA"]
[PlyCount "75"]
[EventDate "2019.06.02"]
[EventCountry "RUS"]
[SourceTitle "playchess.com"]
[Source "ChessBase"]
[SourceQuality "1"]
[TimeControl "5400+30"]

1. e4 {[%emt 0:00:00]} c5 {[%emt 0:00:00]} 2. Nf3 {[%emt 0:00:00]} a6 {[%emt 0:00:00]} 3. d3 {[%emt 0:00:00]} Nc6 {[%emt 0:00:52]} 4. g3 {[%emt 0:00:00]} e5 {[%emt 0:00:29]} 5. Bg2 {[%emt 0:00:00]} d6 {[%emt 0:00:04]} 6. O-O {[%emt 0:00:41]} Nf6 {[%emt 0:01:00]} 7. c3 {[%emt 0:02:24]} Be7 {[%emt 0:00:15]} 8. d4 {[%emt 0:04:33]} exd4 {[%emt 0:03:11]} 9. cxd4 {[%emt 0:00:04]} Nxe4 {[%emt 0:01:17]} 10. d5 {[%emt 0:00:16]} Nb8 {[%emt 0:00:48]} 11. Qa4+ {[%emt 0:00:06]} b5 {[%emt 0:02:37]} 12. Qxe4 {[%emt 0:00:10]} O-O {[%emt 0:00:16]} 13. Nc3 {[%emt 0:00:50]} Nd7 {[%emt 0:00:48]} 14. Re1 {[%emt 0:01:07]} Re8 {[%emt 0:00:15]} 15. Bf4 {[%emt 0:01:18]} Nf6 {[%emt 0:00:42]} 16. Qd3 {[%emt 0:00:42]} Bb7 {[%emt 0:00:34]} 17. Ng5 {[%emt 0:02:47]} h6 {[%emt 0:00:29]} 18. Nge4 {[%emt 0:00:35]} b4 {[%emt 0:01:28]} 19. Nxf6+ {[%emt 0:01:16]} Bxf6 {[%emt 0:00:08]} 20. Rxe8+ {[%emt 0:00:09]} Qxe8 {[%emt 0:00:08]} 21. Ne4 {[%emt 0:00:17]} Bxb2 {[%emt 0:01:30]} 22. Nxd6 {[%emt 0:00:18]} Qd7 {[%emt 0:00:33]} 23. Rb1 {[%emt 0:00:06]} c4 {[%emt 0:09:54]} 24. Qxc4 {[%emt 0:00:50]} g5 {[%emt 0:00:23]} 25. Nxb7 {[%emt 0:00:32]} gxf4 {[%emt 0:00:11]} 26. Nc5 {[%emt 0:01:20]} Qd6 {[%emt 0:02:40]} 27. Rxb2 {[%emt 0:00:43]} Rc8 {[%emt 0:00:39]} 28. Ne4 {[%emt 0:00:42]} Rxc4 {[%emt 0:00:50]} 29. Nxd6 {[%emt 0:00:00]} Rc1+ {[%emt 0:00:53]} 30. Bf1 {[%emt 0:00:00]} fxg3 {[%emt 0:00:21]} 31. hxg3 {[%emt 0:00:00]} Rd1 {[%emt 0:01:22]} 32. Nf5 {[%emt 0:00:00]} Kh7 {[%emt 0:00:00]} 33. Ne3 {[%emt 0:00:20]} Rd4 {[%emt 0:00:05]} 34. Bxa6 {[%emt 0:00:08]} Kg6 {[%emt 0:00:47]} 35. Rc2 {[%emt 0:00:45]} f6 {[%emt 0:00:22]} 36. Rc4 {[%emt 0:00:00]} Rd2 {[%emt 0:00:11]} 37. Rxb4 {[%emt 0:00:00]} Rxa2 {[%emt 0:00:13]} 38. Bd3+ {[%emt 0:00:18]} 1-0

[Event "White Rook U14 Final 2019"]
[Site "Sochi"]
[Date "2019.06.09"]
[Round "8.5"]
[White "Kurus, Artem"]
[Black "Tugstumur, Yesuntumur"]
[Result "0-1"]
[ECO "B07"]
[WhiteElo "1769"]
[BlackElo "2356"]
[Annotator "NA RC"]
[PlyCount "96"]
[EventDate "2019.06.02"]
[EventCountry "RUS"]
[SourceTitle "playchess.com"]
[Source "ChessBase"]
[SourceQuality "1"]
[TimeControl "5400+30"]

1. d4 {[%emt 0:00:00]} Nf6 {[%emt 0:00:00]} 2. Nf3 {[%emt 0:00:00]} g6 {[%emt 0:00:00]} 3. Nbd2 {[%emt 0:00:00]} Bg7 {[%emt 0:00:00]} 4. e4 {[%emt 0:00:00]} d6 {[%emt 0:00:00]} 5. Bb5+ {[%emt 0:00:00]} c6 {[%emt 0:00:00]} 6. Bd3 {[%emt 0:00:00]} O-O {[%emt 0:00:00]} 7. O-O {[%emt 0:00:00]} Qc7 {[%emt 0:00:11]} 8. c3 {[%emt 0:00:41]} e5 {[%emt 0:00:52]} 9. dxe5 {[%emt 0:02:35]} dxe5 {[%emt 0:00:00]} 10. Nc4 {[%emt 0:10:10]} Nh5 {[%emt 0:00:44]} 11. g3 {[%emt 0:08:36]} Rd8 {[%emt 0:03:34]} 12. Qc2 {[%emt 0:03:08]} b5 {[%emt 0:04:45]} 13. Ne3 {[%emt 0:03:27]} Nd7 {[%emt 0:00:33]} 14. b4 {[%emt 0:02:25]} Nb6 {[%emt 0:00:42]} 15. Nd2 {[%emt 0:12:25]} Bh3 {[%emt 0:04:37]} 16. Rd1 {[%emt 0:04:47]} Na4 {[%emt 0:03:47]} 17. Nb3 {[%emt 0:21:00]} Qe7 {[%emt 0:03:00]} 18. Nf1 {[%emt 0:05:32]} f5 {[%emt 0:05:24]} 19. exf5 {[%emt 0:07:56]} e4 {[%emt 0:00:35]} 20. Be2 {[%emt 0:06:06]} Nxc3 {[%emt 0:02:03]} 21. Rxd8+ {[%emt 0:00:31]} Qxd8 {[%emt 0:03:24]} 22. Bb2 {[%emt 0:02:22]} Nxe2+ {[%emt 0:03:03]} 23. Qxe2 {[%emt 0:00:00]} Bxf5 {[%emt 0:00:47]} 24. Bxg7 {[%emt 0:04:14]} Nxg7 {[%emt 0:00:52]} 25. Rd1 {[%emt 0:00:40]} Qe7 {[%emt 0:02:05]} 26. Qd2 {[%emt 0:01:03]} Ne6 {[%emt 0:00:09]} 27. Qc3 {[%emt 0:03:13]} Bg4 {[%emt 0:02:10]} 28. Qxc6 {[%emt 0:02:03]} Rf8 {[%emt 0:00:05]} 29. Rc1 {[%emt 0:00:24]} Ng5 {[%emt 0:00:39]} 30. Nbd2 {[%emt 0:00:33]} Qf7 {[%emt 0:00:40]} 31. Qc5 {[%emt 0:00:25]} Nh3+ {[%emt 0:00:58]} 32. Kg2 {[%emt 0:00:16]} Qxf2+ {[%emt 0:00:10]} 33. Qxf2 {[%emt 0:00:32]} Rxf2+ {[%emt 0:00:06]} 34. Kh1 {[%emt 0:00:00]} h5 {[%emt 0:00:07]} 35. Re1 {[%emt 0:00:47]} Bd7 {[%emt 0:02:08]} 36. Re3 {[%emt 0:01:01]} Bc6 {[%emt 0:00:10]} 37. Nxe4 {[%emt 0:01:06]} Ng5 {[%emt 0:00:46]} 38. Kg1 {[%emt 0:00:00]} Nxe4 {[%emt 0:00:01]} 39. Rxe4 {[%emt 0:00:00]} Rxf1+ {[%emt 0:00:01]} 40. Kxf1 {[%emt 0:00:01]} Bxe4 {[%emt 0:00:09]} 41. Ke2 {[%emt 0:00:10]} Kf7 {[%emt 0:00:03]} 42. Ke3 {[%emt 0:00:03]} Bd5 {[%emt 0:00:37]} 43. a3 {[%emt 0:00:02]} Ke6 {[%emt 0:00:00]} 44. Kd4 {[%emt 0:00:03]} Kd6 {[%emt 0:00:00]} 45. h3 {[%emt 0:00:07]} Be6 {[%emt 0:00:00]} 46. h4 {[%emt 0:00:05]} Bf5 {[%emt 0:00:00]} 47. Kc3 {[%emt 0:00:41]} Ke5 {[%emt 0:00:00]} 48. Kd2 {[%emt 0:00:00]} Kd4 {[%emt 0:00:03]} 0-1

[Event "White Rook U14 Final 2019"]
[Site "Sochi"]
[Date "2019.06.09"]
[Round "8.6"]
[White "Munkhzul, Davaakhuu"]
[Black "Usov, Aleksandr E."]
[Result "0-1"]
[ECO "B15"]
[WhiteElo "1806"]
[BlackElo "1812"]
[Annotator "NA"]
[PlyCount "165"]
[EventDate "2019.06.02"]
[EventCountry "RUS"]
[SourceTitle "playchess.com"]
[Source "ChessBase"]
[SourceQuality "1"]
[TimeControl "5400+30"]

1. e4 {[%emt 0:00:00]} c6 {[%emt 0:00:00]} 2. d4 {[%emt 0:00:00]} d5 {[%emt 0:00:00]} 3. Nc3 {[%emt 0:00:00]} dxe4 {[%emt 0:00:00]} 4. Nxe4 {[%emt 0:00:00]} Nf6 {[%emt 0:00:00]} 5. Nxf6+ {[%emt 0:00:14]} exf6 {[%emt 0:00:00]} 6. Nf3 {[%emt 0:00:00]} Bd6 {[%emt 0:00:07]} 7. Bd3 {[%emt 0:00:00]} O-O {[%emt 0:00:03]} 8. O-O {[%emt 0:00:00]} Re8 {[%emt 0:00:21]} 9. c3 {[%emt 0:01:35]} Bg4 {[%emt 0:00:08]} 10. h3 {[%emt 0:00:06]} Bh5 {[%emt 0:00:12]} 11. Be3 {[%emt 0:00:08]} Nd7 {[%emt 0:02:05]} 12. Re1 {[%emt 0:01:58]} Nf8 {[%emt 0:00:19]} 13. Be2 {[%emt 0:03:18]} Qc7 {[%emt 0:03:34]} 14. Nd2 {[%emt 0:00:55]} Bxe2 {[%emt 0:00:21]} 15. Qxe2 {[%emt 0:00:37]} f5 {[%emt 0:00:42]} 16. g3 {[%emt 0:09:06]} Bxg3 {[%emt 0:01:48]} 17. Nf1 {[%emt 0:03:42]} Bd6 {[%emt 0:03:22]} 18. Qf3 {[%emt 0:00:50]} Qd7 {[%emt 0:00:32]} 19. Bf4 {[%emt 0:12:09]} Bxf4 {[%emt 0:09:44]} 20. Qxf4 {[%emt 0:00:05]} g6 {[%emt 0:01:57]} 21. h4 {[%emt 0:04:37]} Ne6 {[%emt 0:03:54]} 22. Qh6 {[%emt 0:03:20]} Rad8 {[%emt 0:04:22]} 23. Ng3 {[%emt 0:02:48]} Qc7 {[%emt 0:05:17]} 24. Re3 {[%emt 0:10:56]} Qf4 {[%emt 0:11:55]} 25. Qxf4 {[%emt 0:01:30]} Nxf4 {[%emt 0:00:00]} 26. Rae1 {[%emt 0:07:01]} Rxe3 {[%emt 0:03:39]} 27. Rxe3 {[%emt 0:01:10]} Ne6 {[%emt 0:00:56]} 28. Ne2 {[%emt 0:04:14]} Rd7 {[%emt 0:04:03]} 29. Kg2 {[%emt 0:05:27]} b6 {[%emt 0:01:54]} 30. Rd3 {[%emt 0:03:32]} h5 {[%emt 0:06:05]} 31. c4 {[%emt 0:07:22]} f6 {[%emt 0:07:07]} 32. f4 {[%emt 0:00:42]} Nc5 {[%emt 0:02:11]} 33. Rd1 {[%emt 0:04:37]} Ne4 {[%emt 0:00:00]} 34. Kf3 {[%emt 0:02:03]} Kf7 {[%emt 0:00:40]} 35. d5 {[%emt 0:01:24]} a6 {[%emt 0:05:00]} 36. Rd4 {[%emt 0:06:38]} c5 {[%emt 0:03:13]} 37. Rd3 {[%emt 0:01:44]} b5 {[%emt 0:00:36]} 38. b3 {[%emt 0:00:36]} b4 {[%emt 0:00:58]} 39. Nc1 {[%emt 0:01:14]} a5 {[%emt 0:00:13]} 40. Rd1 {[%emt 0:00:56]} Ke7 {[%emt 0:00:58]} 41. Nd3 {[%emt 0:00:00]} Kd6 {[%emt 0:05:40]} 42. Rg1 {[%emt 0:00:23]} Rg7 {[%emt 0:00:44]} 43. Rh1 {[%emt 0:02:01]} a4 {[%emt 0:01:46]} 44. Rh2 {[%emt 0:00:22]} axb3 {[%emt 0:01:08]} 45. axb3 {[%emt 0:00:30]} Ra7 {[%emt 0:00:49]} 46. Rg2 {[%emt 0:00:03]} Ra3 {[%emt 0:00:42]} 47. Nc1 {[%emt 0:00:33]} Ra1 {[%emt 0:01:29]} 48. Rc2 {[%emt 0:00:00]} Kd7 {[%emt 0:00:48]} 49. Ke3 {[%emt 0:00:17]} Rb1 {[%emt 0:02:02]} 50. Kf3 {[%emt 0:00:58]} Ke7 {[%emt 0:03:45]} 51. Ke3 {[%emt 0:00:21]} Kf7 {[%emt 0:00:01]} 52. Kf3 {[%emt 0:00:29]} Kg7 {[%emt 0:00:41]} 53. Ke3 {[%emt 0:01:22]} Kh6 {[%emt 0:00:00]} 54. Kf3 {[%emt 0:01:52]} g5 {[%emt 0:00:58]} 55. Kg2 {[%emt 0:00:34]} g4 {[%emt 0:02:52]} 56. Kh2 {[%emt 0:00:07]} Kg6 {[%emt 0:00:40]} 57. Kg2 {[%emt 0:00:04]} Kf7 {[%emt 0:00:00]} 58. Kh2 {[%emt 0:00:08]} Ke7 {[%emt 0:00:00]} 59. Kg2 {[%emt 0:00:11]} Kd7 {[%emt 0:00:20]} 60. Kh2 {[%emt 0:00:42]} Nd6 {[%emt 0:00:09]} 61. Nd3 {[%emt 0:00:01]} Ne4 {[%emt 0:00:18]} 62. Nc1 {[%emt 0:00:02]} Kc7 {[%emt 0:00:40]} 63. Kg2 {[%emt 0:00:31]} Kb6 {[%emt 0:01:07]} 64. Kh2 {[%emt 0:00:00]} Nd6 {[%emt 0:00:16]} 65. Kg2 {[%emt 0:00:35]} Nc8 {[%emt 0:00:39]} 66. Kh2 {[%emt 0:00:38]} Ne7 {[%emt 0:00:52]} 67. Re2 {[%emt 0:03:03]} Nxd5 {[%emt 0:02:28]} 68. Re6+ {[%emt 0:00:37]} Kc7 {[%emt 0:01:06]} 69. Nd3 {[%emt 0:00:56]} Rxb3 {[%emt 0:01:29]} 70. cxd5 {[%emt 0:00:27]} Rxd3 {[%emt 0:00:12]} 71. Rc6+ {[%emt 0:00:02]} Kd7 {[%emt 0:00:09]} 72. Rxc5 {[%emt 0:00:05]} Kd6 {[%emt 0:01:51]} 73. Rb5 {[%emt 0:00:46]} Rd4 {[%emt 0:00:15]} 74. Kg3 {[%emt 0:00:09]} Rc4 {[%emt 0:00:15]} 75. Rb6+ {[%emt 0:00:37]} Kxd5 {[%emt 0:00:09]} 76. Rxf6 {[%emt 0:00:03]} Rc3+ {[%emt 0:00:07]} 77. Kg2 {[%emt 0:00:10]} Ke4 {[%emt 0:00:15]} 78. Rb6 {[%emt 0:00:29]} b3 {[%emt 0:00:16]} 79. Rb4+ {[%emt 0:00:14]} Kd3 {[%emt 0:00:00]} 80. Rb5 {[%emt 0:00:21]} Kc2 {[%emt 0:00:25]} 81. Rxf5 {[%emt 0:01:10]} b2 {[%emt 0:00:11]} 82. Rb5 {[%emt 0:00:04]} b1=Q {[%emt 0:00:18]} 83. Rxb1 {[%emt 0:00:07]} 0-1